[Event "1000 GM Labor Day Super Swiss 2024"]
[Site "San Jose"]
[Date "2024.08.31"]
[Round "1.21"]
[White "Champsi, Imran"]
[Black "Kiewra, Keaton"]
[Result "1/2-1/2"]
[Annotator "RC"]
[ECO "A16"]
[WhiteElo "2012"]
[BlackElo "2287"]
[PlyCount "118"]
[EventDate "2024.08.30"]
[EventCountry "USA"]
[SourceTitle "playchess.com"]
[Source "ChessBase"]
[SourceQuality "1"]
[TimeControl "5400+30"]

1. Nf3 {[%emt 0:00:01]} Nf6 {[%emt 0:02:18]} 2. c4 {[%emt 0:00:02]} g6 {[%emt 0:00:24]} 3. Nc3 {[%emt 0:00:18]} Bg7 {[%emt 0:00:08]} 4. g3 {[%emt 0:00:38]} d5 {[%emt 0:00:20]} 5. cxd5 {[%emt 0:00:29]} Nxd5 {[%emt 0:00:07]} 6. Bg2 {[%emt 0:00:36]} Nb6 {[%emt 0:00:16]} 7. d3 {[%emt 0:01:15]} Nc6 {[%emt 0:01:07]} 8. h4 {[%emt 0:02:29]} h6 {[%emt 0:00:28]} 9. Bd2 {[%emt 0:01:57]} e5 {[%emt 0:02:26]} 10. Rc1 {[%emt 0:09:05]} Nd4 {[%emt 0:02:26]} 11. O-O {[%emt 0:04:48]} c6 {[%emt 0:01:09]} 12. Ne4 {[%emt 0:01:49]} O-O {[%emt 0:00:48]} 13. h5 {[%emt 0:06:24]} Nxf3+ {[%emt 0:06:50]} 14. Bxf3 {[%emt 0:00:06]} f5 {[%emt 0:00:07]} 15. Qb3+ {[%emt 0:03:01]} Kh8 {[%emt 0:00:18]} 16. Nc5 {[%emt 0:01:05]} e4 {[%emt 0:07:10]} 17. Bg2 {[%emt 0:04:38]} gxh5 {[%emt 0:00:31]} 18. Rfd1 {[%emt 0:09:23]} e3 {[%emt 0:07:31]} 19. Bxe3 {[%emt 0:03:02]} Nd5 {[%emt 0:00:10]} 20. Nxb7 {[%emt 0:10:35]} Bxb7 {[%emt 0:02:16]} 21. Bxd5 {[%emt 0:02:05]} f4 {[%emt 0:09:37]} 22. Bxf4 {[%emt 0:12:13]} Rxf4 {[%emt 0:00:07]} 23. Qxb7 {[%emt 0:02:17]} Rb8 {[%emt 0:07:31]} 24. Qxc6 {[%emt 0:01:12]} Qg5 {[%emt 0:00:13]} 25. Bg2 {[%emt 0:07:54]} Rxf2 {[%emt 0:00:53]} 26. Qd6 {[%emt 0:13:48]} Qe3 {[%emt 0:02:34]} 27. Kh1 {[%emt 0:01:22]} Be5 {[%emt 0:00:18]} 28. Qe6 {[%emt 0:01:11]} Rg8 {[%emt 0:04:04]} 29. d4 {[%emt 0:00:44]} Rxg2 {[%emt 0:03:06]} 30. Qxe5+ {[%emt 0:00:23]} Qxe5 {[%emt 0:00:05]} 31. dxe5 {[%emt 0:00:02]} Rxe2 {[%emt 0:00:10]} 32. Rc7 {[%emt 0:00:59]} a5 {[%emt 0:01:22]} 33. Rd6 {[%emt 0:00:36]} Rxg3 {[%emt 0:00:43]} 34. Rxh6+ {[%emt 0:00:16]} Kg8 {[%emt 0:00:03]} 35. Rb6 {[%emt 0:00:40]} Rf3 {[%emt 0:00:52]} 36. Rc8+ {[%emt 0:00:33]} Kf7 {[%emt 0:01:34]} 37. Rc7+ {[%emt 0:00:11]} Kg8 {[%emt 0:00:02]} 38. Rb8+ {[%emt 0:00:48]} Rf8 {[%emt 0:00:06]} 39. Rxf8+ {[%emt 0:00:28]} Kxf8 {[%emt 0:00:02]} 40. Rc5 {[%emt 0:00:15]} a4 {[%emt 0:00:29]} 41. Ra5 {[%emt 0:00:43]} Re4 {[%emt 0:03:16]} 42. Kg2 {[%emt 0:00:33]} h4 {[%emt 0:00:06]} 43. Rb5 {[%emt 0:00:33]} Kg7 {[%emt 0:02:22]} 44. a3 {[%emt 0:00:27]} Kg6 {[%emt 0:00:40]} 45. Kf3 {[%emt 0:00:30]} h3 {[%emt 0:01:38]} 46. Rb6+ {[%emt 0:00:33]} Kf5 {[%emt 0:04:51]} 47. Rh6 {[%emt 0:00:23]} Kxe5 {[%emt 0:00:24]} 48. Rxh3 {[%emt 0:00:35]} Kd4 {[%emt 0:00:09]} 49. Rh8 {[%emt 0:00:33]} Re3+ {[%emt 0:00:05]} 50. Kf2 {[%emt 0:00:30]} Re4 {[%emt 0:00:22]} 51. Rc8 {[%emt 0:00:25]} Kd3 {[%emt 0:00:06]} 52. Kf3 {[%emt 0:00:35]} Rc4 {[%emt 0:00:39]} 53. Rb8 {[%emt 0:00:31]} Rh4 {[%emt 0:00:44]} 54. Rb4 {[%emt 0:00:27]} Rxb4 {[%emt 0:00:27]} 55. axb4 {[%emt 0:00:02]} Kc4 {[%emt 0:00:11]} 56. Ke3 {[%emt 0:00:01]} Kxb4 {[%emt 0:00:07]} 57. Kd2 {[%emt 0:00:02]} Kb3 {[%emt 0:00:07]} 58. Kc1 {[%emt 0:00:03]} a3 {[%emt 0:00:06]} 59. Kb1 {[%emt 0:00:14]} axb2 {[%emt 0:00:06]} 1/2-1/2